Cogmind - Beta 10.2 @@@ ROGUE MODE // 2020.12.02 @ 18:09:41 Player: whisper Result: Destroyed by G-47 Trooper with Particle Gun Performance ------------- Evolutions (2) 1000 Regions Visited (7) 1400 Robots Destroyed (38) 190 Value Destroyed (1462) 1462 Prototype IDs (26) 520 Alien Tech Used (0) 0 Bonus (1270) 1270 TOTAL SCORE: 5842 Bonus ------- Pacifist 270 Entered Garrisons 200 Used RIF Installer 500 Aligned with FarCom 300 Cogmind --------- Core Integrity 0/550 Matter 275/300 Energy 193/265 System Corruption 2% Temperature Cool (338) Movement Treading (180) Ox1 Location -8/Materials Parts ------- > --- POWER (1) -------- Reinforced Ion Engine > --- PROPULSION (2) --- Light Treads Light Treads > --- UTILITY (4) ------ Large Storage Unit Large Storage Unit Targeting Computer Advanced Targeting Computer > --- WEAPON (4) ------- Improved Medium Laser Improved Medium Laser EM Pulse Cannon Scythe > --- INVENTORY (16) --- Light Nuclear Core Wheel Compact Wheel Improved Heat Sink Large Battery (300) Large Matter Pod (150) Improved Terrain Scanner Targeting Computer Improved ECM Suite Beam Rifle Heavy Particle Cannon YOLO Cannon Grenade Launcher Mini Grenade Launcher Peak State ------------ > --- POWER ------------ (None) > --- PROPULSION ------- Carbon-fiber Leg Carbon-fiber Leg > --- UTILITY ---------- Improved Heat Sink Large Storage Unit Large Storage Unit Targeting Computer > --- WEAPON ----------- EM Shotgun YOLO Cannon Minigun > --- INVENTORY -------- Light Treads Light Treads Improved Treads Wheel Compact Wheel Improved Heat Sink Large Battery Large Matter Pod Advanced Targeting Computer Light Armor Plating Shield Generator Light Assault Rifle Grenade Launcher Mini Grenade Launcher [Rating: 39] Favorites ----------- Power Ion Engine Engine Ion Engine Power Core Light Nuclear Core Propulsion Aluminum Leg Treads Light Treads Leg Aluminum Leg Hover Unit Aerolev Unit Utility Large Storage Unit Device Improved Heat Sink Storage Large Storage Unit Processor Targeting Computer Protection Light Armor Plating Weapon Small Laser Energy Gun Small Laser Energy Cannon EM Pulse Cannon Ballistic Gun Light Assault Rifle Launcher Mini Grenade Launcher Slashing Weapon Scythe Build | -11 -10 -10 -10 -9 -8 -8 -8 ------- Run | Scr Mat Min Exi Min Mat Gar Mat Slots Evolved 4 | . . . . . 4 . . Power . | . . . . . . . . Propulsion . | . . . . . . . . Utility 2 | . . . . . 2 . . Weapon 2 | . . . . . 2 . . Parts Attached 56 | 6 3 . 1 . 21 8 17 Power 5 | 1 . . . . 1 1 2 Engine 4 | 1 . . . . 1 . 2 Core 1 | . . . . . . 1 . Reactor . | . . . . . . . . Propulsion 12 | 2 . . . . 3 2 5 Treads 6 | . . . . . . 2 4 Leg 5 | 2 . . . . 3 . . Wheel . | . . . . . . . . Hover 1 | . . . . . . . 1 Flight . | . . . . . . . . Utility 11 | 1 3 . 1 . 4 1 1 Device 4 | . 1 . . . 2 1 . Storage 3 | 1 1 . 1 . . . . Processor 2 | . . . . . 1 . 1 Hackware . | . . . . . . . . Protection 2 | . 1 . . . 1 . . Artifact . | . . . . . . . . Weapon 28 | 2 . . . . 13 4 9 Energy Gun 14 | 2 . . . . 6 1 5 Energy Cannon 3 | . . . . . . 1 2 Ballistic Gun 9 | . . . . . 7 1 1 Ballistic Cannon . | . . . . . . . . Launcher 1 | . . . . . . 1 . Special Weapon . | . . . . . . . . Impact Weapon . | . . . . . . . . Slashing Weapon 1 | . . . . . . . 1 Piercing Weapon . | . . . . . . . . Special Melee Weapon . | . . . . . . . . Unidentified Prototypes 3 | . . . . . . . 3 Parts Lost 20 | . . . . . 7 9 4 Power 3 | . . . . . 1 2 . Propulsion 3 | . . . . . . 2 1 Utility 2 | . . . . . . 1 1 Weapon 12 | . . . . . 6 4 2 Highest Loss Streak 6 | . . . . . 4 6 1 Average Slot Usage (%) 92 | . 98 100 100 100 96 71 88 Engine 10 | . 14 14 14 14 8 2 8 Treads 5 | . . . . . . 10 17 Leg 16 | . 28 28 28 28 18 7 . Device 2 | . 10 . . . 2 8 1 Storage 19 | . 16 14 21 28 18 18 18 Processor 7 | . . . . . 9 9 16 Protection 3 | . . 14 6 . 6 . . Energy Gun 19 | . 28 28 28 28 13 9 14 Ballistic Gun 5 | . . . . . 19 8 1 Slashing Weapon 1 | . . . . . . . 7 Naked Turns . | . . . . . . . . Heaviest Build 57 | 12 28 27 40 40 49 57 56 Greatest Support 43 | 20 20 20 20 20 30 43 43 Greatest Overweight (x) 2 | 1 1 1 1 1 2 1 2 Average Overweight (x) . | . . 1 1 1 1 . . Largest Inventory Capacity 16 | 6 12 10 16 16 16 16 16 Average Capacity 14 | 5 9 10 13 16 16 16 16 Most Carried 16 | 6 10 9 13 15 16 16 16 Average Carried 12 | 3 8 9 10 13 14 14 14 Final Capacity 16 | 6 10 10 16 16 16 16 16 Final Carried 16 | 6 9 9 13 15 16 13 15 Class Distribution -------------------- 62% | Mutant 15% | Skirmisher 10% | Gunner 6% | Scavenger-Skirmisher 3% | Scavenger-Gunner Dominant Class ---------------- Mutant | -10/Materials Mutant | -10/Mines Mutant | -10/Exiles Mutant | -9/Mines Skirmisher | -8/Materials Mutant | -8/Garrison Mutant | -8/Materials Resources | -11 -10 -10 -10 -9 -8 -8 -8 ----------- Run | Scr Mat Min Exi Min Mat Gar Mat Matter Collected 1133 | 243 . . 47 57 470 136 180 Remotely . | . . . . . . . . Salvage Created 1835 | . . . . . 679 176 980 Parts 86 | . . . . . 39 7 40 Haulers Intercepted 4 | . . . . . 1 . 3 Recyclers Shooed 1 | . . . . . 1 . . Parts Field Recycled . | . . . . . . . . Retrieved Matter . | . . . . . . . . Parts Self-Destructed . | . . . . . . . . Prevented . | . . . . . . . . Kills | -11 -10 -10 -10 -9 -8 -8 -8 ------- Run | Scr Mat Min Exi Min Mat Gar Mat Combat Hostiles Destroyed 31 | . . . . . 13 5 13 Melee 4 | . . . . . . . 4 Guns 23 | . . . . . 13 2 8 Cannons 1 | . . . . . . . 1 AOE 3 | . . . . . . 3 . Classes Destroyed 8 | . . . . . 5 . 3 Worker 1 | . . . . . . . 1 Hauler 4 | . . . . . 1 . 3 Recycler 2 | . . . . . . . 2 Grunt 18 | . . . . . 5 5 8 Brawler 2 | . . . . . 1 . 1 Duelist 1 | . . . . . . . 1 Sentry 8 | . . . . . 6 . 2 Hunter 2 | . . . . . 1 . 1 Best Kill Streak 5 | . . . . . 5 3 4 Combat Bots Only 5 | . . . . . 5 3 3 Max Kills in Single Turn 1 | . . . . . 1 1 1 Gunslinging . | . . . . . . . . Exploded 1 | . . . . . . 1 . Melee 1 | . . . . . . . 1 Uniques/NPCs Destroyed . | . . . . . . . . Combat | -11 -10 -10 -10 -9 -8 -8 -8 -------- Run | Scr Mat Min Exi Min Mat Gar Mat Damage Taken 3087 | . . . . . 1012 1016 1059 Core 559 | . . . . . 147 231 181 Absorbed by Shields 53 | . . . . . . 53 . Core Remaining (%) 100 | 100 . . . 100 . . . Volleys Fired 107 | . . . . . 46 27 34 Largest 4 | . . . . . 4 4 3 Hottest 187 | . . . . . 162 110 187 Shots Fired 277 | . . . . . 141 49 87 Gun 267 | . . . . . 141 45 81 Cannon 7 | . . . . . . 1 6 Launcher 3 | . . . . . . 3 . Special . | . . . . . . . . Kinetic 148 | . . . . . 107 26 15 Thermal 110 | . . . . . 34 10 66 Explosive 3 | . . . . . . 3 . Electromagnetic 16 | . . . . . . 10 6 Robot Hit Streak 27 | . . . . . 25 19 27 Robot Miss Streak 5 | . . . . . 5 2 2 Penetration Max . | . . . . . . . . Secondary Targets 3 | . . . . . 1 1 1 Max Gunslinging Chain 1 | . . . . . 1 1 1 Shots Hit Robots 231 | . . . . . 104 42 85 Core Hits 83 | . . . . . 37 17 29 Critical Hits 1 | . . . . . . . 1 Critical Kills . | . . . . . . . . Critical Parts Destroyed 1 | . . . . . . . 1 Melee Attacks 13 | . . . . . . . 13 Impact . | . . . . . . . . Slashing 13 | . . . . . . . 13 Piercing . | . . . . . . . . Sneak Attacks 1 | . . . . . . . 1 Combat Hostiles . | . . . . . . . . Follow-up Attacks . | . . . . . . . . Damage Inflicted 4084 | . . . . . 1251 1157 1676 Guns 2799 | . . . . . 1251 421 1127 Cannons 218 | . . . . . . 139 79 Explosions 654 | . . . . . . 597 57 Melee 413 | . . . . . . . 413 Ramming . | . . . . . . . . Kinetic 1341 | . . . . . 948 192 201 Thermal 1807 | . . . . . 303 521 983 Explosive 338 | . . . . . . 338 . Electromagnetic 185 | . . . . . . 106 79 Impact . | . . . . . . . . Slashing 413 | . . . . . . . 413 Piercing . | . . . . . . . . Highest Corruption 2 | . . . . . 2 2 2 Average Corruption 2 | . . . . . 2 2 2 Corruption Purged . | . . . . . . . . Effects 18 | . . . . . 5 8 5 Message Errors 6 | . . . . . 1 4 1 Heat Flow Errors 1 | . . . . . . . 1 Energy Discharges 2 | . . . . . . 1 1 Data Loss (minor) 1 | . . . . . . 1 . Targeting Errors 5 | . . . . . 2 1 2 Weapon Failures 3 | . . . . . 2 1 . Overload Shots . | . . . . . . . . Overflow Damage 134 | . . . . . . 134 . Projectiles 49 | . . . . . . 49 . Explosions 85 | . . . . . . 85 . Melee . | . . . . . . . . Knockbacks . | . . . . . . . . Impact . | . . . . . . . . Kinetic . | . . . . . . . . Secondary . | . . . . . . . . Self-Inflicted Damage 37 | . . . . . . . 37 Shots 1 | . . . . . . . 1 Rammed . | . . . . . . . . Targets Rammed . | . . . . . . . . Kicked . | . . . . . . . . Crushed . | . . . . . . . . Highest Temperature 413 | . . . . . 277 82 413 Average Temperature 110 | . . . . . 114 33 123 Received Heat Transfer 1101 | . . . . . 306 525 270 Effects 9 | . . . . . 4 . 5 Shutdowns 1 | . . . . . . . 1 Energy Bleed 5 | . . . . . 4 . 1 Interference 3 | . . . . . . . 3 Siege Activations . | . . . . . . . . Robots Corrupted . | . . . . . . . . Combat Hostiles . | . . . . . . . . Parts Fried . | . . . . . . . . Impact Corruptions . | . . . . . . . . Robots Melted . | . . . . . . . . Combat Hostiles . | . . . . . . . . Parts Melted 3 | . . . . . . . 3 Heat Transferred 3607 | . . . . . 769 666 2172 Parts Sabotaged . | . . . . . . . . Parts Stolen . | . . . . . . . . Parts Stripped . | . . . . . . . . Power Chain Reactions 2 | . . . . . . 1 1 Missiles Intercepted . | . . . . . . . . Alert | -11 -10 -10 -10 -9 -8 -8 -8 ------- Run | Scr Mat Min Exi Min Mat Gar Mat Peak Influence 377 | . 46 17 . . 213 377 365 Initial 183 | . . 17 . . . 133 183 Average 157 | . 25 17 . . 93 312 238 Maximum Alert Level 1 | . . . . . 1 1 1 Low Security (%) 59 | 100 100 100 . 100 89 1 32 Level 1 40 | . . . . . 10 98 67 Level 2 . | . . . . . . . . Level 3 . | . . . . . . . . Level 4 . | . . . . . . . . Level 5 . | . . . . . . . . High Security . | . . . . . . . . Max Security . | . . . . . . . . Squads Dispatched 7 | . 1 . . . 3 . 3 Investigation 1 | . . . . . . . 1 Extermination . | . . . . . . . . Reinforcement 3 | . 1 . . . . . 2 Assault . | . . . . . . . . Garrison 3 | . . . . . 3 . . Intercept . | . . . . . . . . Construction Impeded 1 | . . . . . . . 1 Haulers Reinforced . | . . . . . . . . Stealth | -11 -10 -10 -10 -9 -8 -8 -8 --------- Run | Scr Mat Min Exi Min Mat Gar Mat Distress Signals 5 | . 1 . . . 1 . 3 Communications Jammed . | . . . . . . . . Distress Signals . | . . . . . . . . Times Spotted 46 | . . . . . 14 12 20 Peak Tracking Total 7 | . . . . . 6 7 4 Tactical Retreats 4 | . . . . . . 4 . Traps | -11 -10 -10 -10 -9 -8 -8 -8 ------- Run | Scr Mat Min Exi Min Mat Gar Mat Traps Triggered 3 | . . . . . . 3 . Indirectly . | . . . . . . . . Trap Hack Attempts . | . . . . . . . . Triggered . | . . . . . . . . Disarmed . | . . . . . . . . Reprogrammed . | . . . . . . . . Reused . | . . . . . . . . Traps Extracted . | . . . . . . . . Installed . | . . . . . . . . Triggered . | . . . . . . . . Machines | -11 -10 -10 -10 -9 -8 -8 -8 ---------- Run | Scr Mat Min Exi Min Mat Gar Mat Machines Disabled . | . . . . . . . . Max in Single Turn . | . . . . . . . . Machines Sabotaged . | . . . . . . . . Garrisons Compromised . | . . . . . . . . Overloaded Fab Kills . | . . . . . . . . Fab Network Shutdowns . | . . . . . . . . Hacking | -11 -10 -10 -10 -9 -8 -8 -8 --------- Run | Scr Mat Min Exi Min Mat Gar Mat Machines Accessed 14 | . 2 . 5 . 4 . 3 Terminals 6 | . 2 . . . 3 . 1 Fabricators . | . . . . . . . . Repair Stations 1 | . . . . . . . 1 Recycling Units . | . . . . . . . . Scanalyzers 1 | . . . . . . . 1 Garrison Access 1 | . . . . . 1 . . Total Hacks 86 | . 6 . 50 . 17 . 13 Successful 70 | . 4 . 50 . 11 . 5 Failed 15 | . 2 . . . 6 . 7 Catastrophic 2 | . . . . . 2 . . Database Lockouts 1 | . . . . . . . 1 Manual 14 | . . . 1 . 4 . 9 Terminals 27 | . 6 . . . 16 . 5 Fabricators . | . . . . . . . . Repair Stations 5 | . . . . . . . 5 Recycling Units . | . . . . . . . . Scanalyzers 3 | . . . . . . . 3 Garrison Access 1 | . . . . . 1 . . Terminal Hacks 66 | . 4 . 50 . 10 . 2 Record 58 | . . . 49 . 7 . 2 Branch Access Points 1 | . . . . . 1 . . Scanalyzer Index 1 | . 1 . . . . . . Hauler Manifests 2 | . 1 . . . 1 . . Registered Components 2 | . 1 . . . 1 . . Zone Layout 1 | . 1 . . . . . . EX-Prototype ID Bank 1 | . . . 1 . . . . Fabricator Hacks . | . . . . . . . . Repair Station Hacks 3 | . . . . . . . 3 Scan Component 1 | . . . . . . . 1 Repair 1 | . . . . . . . 1 Refit 1 | . . . . . . . 1 Recycling Unit Hacks . | . . . . . . . . Scanalyzer . | . . . . . . . . Garrison Access Hacks 1 | . . . . . 1 . . Unlock Access 1 | . . . . . 1 . . Unauthorized Hacks . | . . . . . . . . Terminals . | . . . . . . . . Fabricators . | . . . . . . . . Repair Stations . | . . . . . . . . Recycling Units . | . . . . . . . . Scanalyzers . | . . . . . . . . Garrison Access . | . . . . . . . . Data Cores Recovered . | . . . . . . . . Used . | . . . . . . . . Hacking Detections 7 | . 1 . . . 4 . 2 Full Trace Events 2 | . . . . . 1 . 1 Feedback Events . | . . . . . . . . Feedback Blocked . | . . . . . . . . Robot Schematics Acquired . | . . . . . . . . Robots Built . | . . . . . . . . Matter . | . . . . . . . . Time . | . . . . . . . . Total Robot Build Rating . | . . . . . . . . Part Schematics Acquired . | . . . . . . . . Parts Built . | . . . . . . . . Matter . | . . . . . . . . Time . | . . . . . . . . Total Part Build Rating . | . . . . . . . . Parts Repaired . | . . . . . . . . Time 32 | . . . . . . . 32 Parts Recycled . | . . . . . . . . Recycled Matter . | . . . . . . . . Retrieved Matter . | . . . . . . . . Retrieved Components . | . . . . . . . . Parts Scanalyzed . | . . . . . . . . Part Schematics Acquired . | . . . . . . . . Parts Damaged . | . . . . . . . . Bothacking | -11 -10 -10 -10 -9 -8 -8 -8 ------------ Run | Scr Mat Min Exi Min Mat Gar Mat Used RIF Installer 1 | . . . . . . 1 . Robots Hacked . | . . . . . . . . Non-combat . | . . . . . . . . Combat . | . . . . . . . . Robot Hacks Applied . | . . . . . . . . Relay Couplers Released . | . . . . . . . . Robots Rewired . | . . . . . . . . Allies Hacked . | . . . . . . . . Hacks Repelled . | . . . . . . . . Allies | -11 -10 -10 -10 -9 -8 -8 -8 -------- Run | Scr Mat Min Exi Min Mat Gar Mat Total Allies 1 | . . 1 . . . . . Largest Group 1 | . . 1 1 . . . . Highest-Rated Group 31 | . . 31 31 . . . . Highest-Rated Ally 31 | . . 31 31 . . . . Total Orders . | . . . . . . . . Ally Attacks . | . . . . . . . . Total Damage . | . . . . . . . . Kills . | . . . . . . . . Allies Corrupted . | . . . . . . . . Allies Melted . | . . . . . . . . Intel | -11 -10 -10 -10 -9 -8 -8 -8 ------- Run | Scr Mat Min Exi Min Mat Gar Mat Robot Analysis Total . | . . . . . . . . Derelict Logs Recovered . | . . . . . . . . Drone Launches . | . . . . . . . . Drone Recoveries . | . . . . . . . . Exploration | -11 -10 -10 -10 -9 -8 -8 -8 ------------- Run | Scr Mat Min Exi Min Mat Gar Mat Turns Passed 3131 | 61 215 135 806 135 642 364 773 Spaces Moved 1516 | 43 137 89 535 89 176 163 284 Core 11 | 11 . . . . . . . Treads 400 | . . . . . . 116 284 Legs 1105 | 32 137 89 535 89 176 47 . Wheels . | . . . . . . . . Hover . | . . . . . . . . Flight . | . . . . . . . . Fastest Speed 50 | 50 120 150 150 150 150 150 160 Average Speed 155 | 107 145 150 150 150 172 157 170 Slowest Speed 200 | 120 150 150 150 150 180 180 200 Overloaded Moves . | . . . . . . . . Propulsion Burnouts . | . . . . . . . . Robots Hopped . | . . . . . . . . Cave-ins Triggered . | . . . . . . . . Exploration Rate (%) 32 | 4 29 25 91 33 15 30 29 Regions Visited 7 Branch Regions 3 Pre-discovered Areas 1 | . . . 1 . . . . Known Exits Taken 1 | . . . . . 1 . . Unknown Exits Taken 5 | 1 1 1 1 1 . . . Scrap Searched 3 | . . . . 3 . . . Spaces Dug . | . . . . . . . . Terrain Destroyed 12 | . . . . . . 9 3 Melee . | . . . . . . . . Projectile . | . . . . . . . . AOE 12 | . . . . . . 9 3 Terrain Rammed . | . . . . . . . . Walls Destroyed . | . . . . . . . . Machines Disabled . | . . . . . . . . Actions | -11 -10 -10 -10 -9 -8 -8 -8 --------- Run | Scr Mat Min Exi Min Mat Gar Mat Total 2053 | 54 153 91 538 91 415 229 482 Wait 298 | . 7 3 . 1 157 18 112 Move 1510 | 42 136 88 534 88 176 162 284 Hop . | . . . . . . . . Pick Up 30 | 6 4 . 3 2 7 . 8 Fast Attach 29 | 6 2 . . . 7 2 12 Attach 17 | . 1 . . . 9 5 2 Detach 7 | . 1 . . . 3 2 1 Swap 10 | . . . 1 . 5 1 3 Drop 20 | . 2 . . . 5 . 13 Fire 107 | . . . . . 46 27 34 Melee 13 | . . . . . . . 13 Ram . | . . . . . . . . Kick . | . . . . . . . . Crush . | . . . . . . . . Escape Stasis 12 | . . . . . . 12 . Rewire . | . . . . . . . . Trap . | . . . . . . . . Miscellaneous . | . . . . . . . . Route ------- -11/Scrapyard -10/Materials -10/Mines (discovered 2 exits: [*Mat] / *Exi) -10/Exiles -9/Mines (discovered 2 exits: *Mat x2) -8/Materials -8/Garrison -8/Materials History --------- Turn | Location | Event 12 | -11/Scrapyard | Discovered new exit (range 16) 62 | -11/Scrapyard | Entered Materials 238 | -10/Materials | Met 8R-AWN 262 | -10/Materials | Discovered new exit (range 8) 277 | -10/Materials | Entered Mines 279 | -10/Mines | Followed 8R-AWN into the Mines 280 | -10/Mines | Received a Mining Laser from a helpful Derelict 313 | -10/Mines | Build established: Mutant 379 | -10/Mines | Discovered new exit (range 11) 405 | -10/Mines | Discovered new exit (range 5) 412 | -10/Mines | Entered Exiles 412 | -10/Exiles | Accompanied by 1 ally 450 | -10/Exiles | Welcomed by 8R-AWN 472 | -10/Exiles | Met EX-HEX 582 | -10/Exiles | Visited The Gauntlet 733 | -10/Exiles | Met EX-DEC 860 | -10/Exiles | Learned location of Zion (-7) 935 | -10/Exiles | Met EX-BIN 962 | -10/Exiles | Aligned with FarCom system 963 | -10/Exiles | Given EX-Vault access code 1026 | -10/Exiles | Opened EX-Vault 1041 | -10/Exiles | Found YOLO Cannon 1099 | -10/Exiles | Warned to stay clear of 0b10 Research branches 1167 | -10/Exiles | Learned about 8R-AWN's background 1200 | -10/Exiles | Discovered new exit (range 14) 1218 | -10/Exiles | Left Exiles lab with YOLO Cannon 1218 | -10/Exiles | Entered Mines 1313 | -9/Mines | A weapon hastily lodged in a ceiling crevice suddenly fell to the ground 1338 | -9/Mines | Discovered new exit (range 10) 1349 | -9/Mines | Discovered new exit (range 8) 1353 | -9/Mines | Entered Materials 1353 | -8/Materials | Evolved 4 slots: Utility x2, Weapon x2 1656 | -8/Materials | Build established: Skirmisher 1694 | -8/Materials | Garrison activated, responded to threat 1880 | -8/Materials | Lost 4 parts (4w) 1995 | -8/Materials | Identified exit to Garrison 1995 | -8/Materials | Entered Garrison 2066 | -8/Garrison | Triggered checkpoint 2108 | -8/Garrison | Core integrity fell below 50% 2115 | -8/Garrison | Lost 3 parts (2p1w) 2183 | -8/Garrison | Lost 6 parts (2n1u3w) 2219 | -8/Garrison | Discovered new exit (range 10) 2245 | -8/Garrison | Installed Relay Interface Framework 2359 | -8/Garrison | Entered Materials 2378 | -8/Materials | Build established: Mutant 2478 | -8/Materials | Core integrity fell below 20% 2685 | -8/Materials | Central database locked down 3132 | -8/Materials | Destroyed by G-47 Trooper with Particle Gun Last Messages --------------- 03007_ Imp. Heat Sink melted. 03007_ G-47 Trooper destroyed. 03017_ K-01 Serf collects debris. 03018_ Dropped Imp. Heat Sink. 03020_ K-01 Serf collects debris. 03022_ Acquired Imp. Heat Sink. 03023_ K-01 Serf collects debris. 03027_ Dropped Lgt. Treads. 03027_ Acquired Lgt. Nuclear Core. 03028_ K-01 Serf collects debris. 03028_ Dropped Lgt. Armor Plating. 03030_ Acquired Targeting Computer. 03042_ K-01 Serf cleans the Nuclear Reactor. 03058_ Connecting with Scanalyzer... 03118_ W-25 Informer sends out distress signal. 03122_ A-02 Transporter destroyed. 03126_ G-47 Trooper destroyed. 03126_ K-01 Serf collects debris. [Achievement: First Step to Greatness] [Achievement: 5k Club] Map ----- +----------------------------------------------------+ | ?????????????????????????????????????????????????? | | ?????????????????????????????????????????????????? | | ????????????????????????? ?#???????????????????? | | ????????????????????????? ? ??????????????????? | | ????????????????????????? ??????????????????? | | ????????????????????????? T ??????????????????? | | ????????????????????????? ??????????????????? | | ?????????????????????????# w ??????????????????? | | ?????????????????????????# ??????????????????? | | ?????????????????Y???????# ?????????????????? | | ????????????????????????## ""??????????????????? | | ????????????????????????# ""??????????????????? | | ????????????????????????? "???????????????????? | | ????????????????????????? [ ???????????????????? | | ??????????????????w??????? [[????????????????????? | | ?????????????????????????? k[????????????????????? | | ???????????????????????####g#####????????????????? | | ???????????????????????# =!% #????????????????? | | ???????????????????????# * #????????????????? | | ???????????????????????# #????????????????? | | ?????????????g?????????# "" #????????????????? | | ?????????Y?????????????# """ #????????????????? | | ???????????????????????# S" #????????????????? | | ???????????????????????# w """ #????????????????? | | ???????????????????????# """ #????????????????? | | ???????????????????????# @ #????????????????? | | ??????????????????#######/#######????????????????? | | ??????????????????# #?????????????????? | | ??????????????????# % #?????????????????? | | ??????????????????# """ """[ #?????????????????? | | ??????????????????# """ """ #?????????????????? | | ??????????????????# """ """ #?????????????????? | | ??????????????????# #?????????????????? | | ??????????????????# """ """ #?????????????????? | | ??????????????????# """ """ #?????????????????? | | ??????????????????# """ """ #?????????????????? | | ??????????????????# #?????????????????? | | ????????????????#?# = ! #?????????????????? | | ????????????????# # !%= #?????????????????? | | ????????????????# #######+######?????????????????? | | ????????????????# ???# ##########+####?????? | | ????????????????# ####== #?????? | | ????????????? + =%]]! = #?????? | | ????????????????# **[ %]! ![* * +?????? | | ????????????????# [%%!]] ![%= #?????? | | ??????????????###+#+##!% = #?????? | | ??????????????# *%=# = ############# #?????? | | ??????????????# / ### ###???????????# ??????? | | ??????????????# #?# #?????????????# ??????? | | ??????????????# #?# #????????????## ####??? | +----------------------------------------------------+ Best States ------------- Heat Dissipation 45 Energy Generation 14 Energy Capacity 265 Matter Stores 300 Matter Capacity 300 Sight Range 16 Robot Scan Range 10 Terrain Scan Density 10 Armor Coverage 150 Evasion (%) 40 Targeting Accuracy 13 Recoil Reduction 2 Item Schematics ----------------- None Robot Schematics ------------------ None Fabricated ------------ Nothing Alien Tech Used ----------------- None Achievements -------------- 5k Club Crack Shot First Step to Greatness Librarian Loot Pinata Novice Programmer One Hack Too Far Risk Taker Shopping List Storm Trooper Tourist Troublemaker Uninvited Guest Challenges ------------ None Game ------ Seed LauncherQuantumDisintegrator Manual? 0 Play Time 00:51:18 Cumulative 1.6 hours Start 2020.12.01 @ 22:30:56 End 2020.12.02 @ 18:09:41 Sessions 9 Manual Loads 0 Difficulty Rogue Special Mode None Game No. 1 Rogue 1 Adventurer 0 Explorer 0 Win Type - Total 0 Types 0/0/0/0/0/0/0/0/0 Lore% 11 Gallery% 3 Achievement% 5 Wizard Run 0 Options --------- ASCII 1 Keyboard 1 Movement Vi Keybinds 0 Fullscreen 1 Font 12/Terminus Map View 76x56 Tactical HUD 1 Map Filters NONE Filters NONE Steam 0 RUN: b39bbb2d-d512-494c-ac94-541dbc032e84